bitfinex-derivatives/quotes_BNBF0:USTF0_20230831
["timestamp","ask_amount","ask_price","bid_price","bid_amount"]
[1693507331536,0.99656719,217.44,217.14,0.18822021]
[1693507331537,0.07509482,217.36,217.14,0.18822021]
[1693507333037,0.07509482,217.36,217.13,0.18822021]
[1693507333443,0.07509482,217.35,217.13,0.26330426]
[1693507333642,0.07509482,217.36,217.14,0.18822021]
[1693507334541,0.07509482,217.35,217.14,0.18822021]
[1693507338447,0.07509482,217.33,217.11,0.07508405]
[1693507338650,0.07509482,217.27,217.05,0.07508405]
[1693507338946,0.07509482,217.27,216.65,2.5028019]
[1693507338947,0.07509482,217.3,217.06,0.18851787]
[1693507339147,0.07509482,217.3,217.03,0.26360192]
[1693507339447,0.07509482,217.31,217.04,0.26360192]
[1693507339644,0.07509482,217.32,217.05,0.26360192]
[1693507339850,0.07509482,217.38,217.09,0.07508405]
[1693507340151,0.07509482,217.38,217.1,0.18851787]
[1693507340348,0.07509482,217.39,217.1,0.18851787]
[1693507340646,0.07509482,217.38,217.1,0.18851787]
[1693507341049,0.07509482,217.39,217.1,0.18851787]
[1693507341652,0.07509482,217.39,217.1,0.26360192]
[1693507341854,0.07509482,217.39,217.11,0.18851787]
[1693507343152,0.07509482,217.4,217.11,0.26360192]
[1693507343353,0.07509482,217.4,217.12,0.18851787]
[1693507347555,0.07509482,217.41,217.12,0.18851787]
[1693507348358,0.07509482,217.4,217.12,0.18851787]
[1693507349457,0.07509482,217.41,217.12,0.18851787]
[1693507349656,0.49828359,217.45,217.12,0.18851787]
[1693507349657,0.07509482,217.4,217.12,0.18851787]
[1693507353758,0.07509482,217.41,217.12,0.18851787]
[1693507354360,0.07509482,217.4,217.12,0.18851787]
[1693507355462,0.07509482,217.41,217.12,0.18851787]
[1693507355664,0.07509482,217.4,217.12,0.18851787]
[1693507364968,0.07509482,217.4,217.12,0.26360192]
[1693507365268,0.07509482,217.4,217.13,0.18851787]
[1693507365468,0.07509482,217.4,217.12,0.18851787]
[1693507365767,0.07509482,217.4,217.13,0.18851787]
[1693507365962,0.07509482,217.4,217.11,0.07508405]
[1693507365963,0.07509482,217.4,217.12,0.18851787]
[1693507366561,0.07509482,217.4,217.12,0.26360192]
[1693507366768,0.07509482,217.4,217.13,0.18851787]
[1693507366970,0.07509482,217.4,217.12,0.18851787]
[1693507367671,0.07509482,217.4,217.12,0.26360192]
[1693507367867,0.07509482,217.4,217.13,0.18851787]
[1693507368665,0.07509482,217.4,217.12,0.18851787]
[1693507368963,0.14948507,217.42,217.13,0.18851787]
[1693507368964,0.07509482,217.39,217.13,0.18851787]
[1693507369165,0.07509482,217.39,217.12,0.18851787]
[1693507369771,0.07509482,217.4,217.12,0.18851787]
[1693507373871,0.07509482,217.38,217.13,0.07508405]
[1693507374070,0.07509482,217.38,217.14,0.18851787]
[1693507374671,0.07509482,217.36,217.15,0.07508405]
[1693507374871,0.07509482,217.36,217.16,0.18851787]
[1693507376272,0.07509482,217.37,217.16,0.26360192]
[1693507376474,0.07509482,217.37,217.17,0.18851787]
[1693507376872,0.07509482,217.36,217.17,0.18851787]
[1693507377070,0.07509482,217.36,217.16,0.18851787]
[1693507377275,0.07509482,217.36,217.17,0.18821214]
[1693507377473,0.07509482,217.36,217.16,0.18821214]
[1693507377672,0.07509482,217.36,217.17,0.18821395]
[1693507377875,0.07509482,217.36,217.16,0.18821395]
[1693507378175,0.07509482,217.36,217.17,0.1882139]
[1693507378376,0.07509482,217.36,217.16,0.1882139]
[1693507378576,0.07509482,217.36,217.16,0.26329795]
[1693507378775,0.07509482,217.36,217.17,0.1882139]
[1693507378977,0.07509482,217.36,217.15,0.07508405]
[1693507379276,0.07509482,217.36,217.16,0.18821925]
[1693507380672,0.07509482,217.36,217.16,0.2633033]
[1693507380872,0.07509482,217.36,217.17,0.18821925]
[1693507386979,0.07509482,217.36,217.16,0.18821925]
[1693507387178,0.07509482,217.36,217.17,0.18823344]
[1693507387378,0.07509482,217.36,217.16,0.18823344]
[1693507387577,0.07509482,217.36,217.17,0.18823249]
[1693507387783,0.07509482,217.36,217.15,0.07508405]
[1693507387983,0.07509482,217.36,217.16,0.18823234]
[1693507389386,0.07509482,217.36,217.16,0.26331639]
[1693507389581,0.07509482,217.36,217.17,0.18823234]
[1693507392187,0.07509482,217.36,217.15,0.07508405]
[1693507392388,0.07509482,217.36,217.16,0.26330944]
[1693507392584,0.07509482,217.36,217.15,0.07508405]
[1693507392786,0.07509482,217.36,217.16,0.18822629]
[1693507394189,0.14948507,217.38,217.16,0.18822629]
[1693507394190,0.07509482,217.35,217.16,0.18822629]
[1693507394491,0.07509482,217.35,217.14,0.07508405]
[1693507394687,0.07509482,217.35,217.15,0.18827607]
[1693507395486,0.07509482,217.34,217.15,0.18827607]
[1693507395684,0.07509482,217.34,217.13,0.07508405]
[1693507395888,0.07509482,217.34,217.14,0.18828847]
[1693507397387,0.07509482,217.35,217.14,0.18828847]
[1693507398093,0.07509482,217.35,217.14,0.26337252]
[1693507398295,0.07509482,217.36,217.15,0.18828847]
[1693507399894,0.07509482,217.36,217.15,0.26337252]
[1693507400095,0.07509482,217.36,217.16,0.18828847]
[1693507400295,0.07509482,217.37,217.16,0.18828847]
[1693507400998,0.07509482,217.36,217.16,0.18828847]
[1693507401702,0.07509482,217.36,217.14,0.07508405]
[1693507401903,0.07509482,217.36,217.15,0.18824093]
[1693507404404,0.07509482,217.36,217.15,0.26332498]
[1693507404600,0.07509482,217.36,217.16,0.18824093]
[1693507404797,0.07509482,217.36,217.15,0.18824093]
[1693507407605,0.99656719,217.43,217.15,0.18824093]
[1693507407606,0.07509482,217.35,217.15,0.18824093]
[1693507407808,0.07509482,217.35,217.14,0.18824093]
[1693507408006,0.07509482,217.35,217.13,0.07508405]
[1693507408208,0.07509482,217.29,217.07,0.07508405]
[1693507408508,0.07509482,217.32,217.08,0.18853322]
[1693507408704,0.07509482,217.37,217.06,0.18853322]
[1693507409007,0.07509482,217.38,217.11,0.07508405]
[1693507409204,0.07509482,217.38,217.12,0.26361727]
[1693507409400,0.07509482,217.39,217.13,0.26361727]
[1693507409708,0.07509482,217.4,217.14,0.18853322]
[1693507410108,0.07509482,217.39,217.14,0.18853322]
[1693507410301,0.07509482,217.4,217.14,0.18853322]
[1693507411810,0.07509482,217.39,217.14,0.18853322]
[1693507412003,0.07509482,217.39,217.13,0.26361727]
[1693507412308,0.07509482,217.39,217.14,0.18853322]
[1693507412908,0.07509482,217.39,217.13,0.18853322]
[1693507413104,0.07509482,217.39,217.14,0.18853322]
[1693507413710,0.07509482,217.39,217.13,0.18853322]
[1693507414010,0.07509482,217.39,217.14,0.18853322]
[1693507414210,0.07509482,217.39,217.13,0.18853322]
[1693507414411,0.07509482,217.39,217.14,0.18853322]
[1693507414710,0.07509482,217.39,217.15,0.18853322]
[1693507414912,0.07509482,217.39,217.13,0.18853322]
[1693507415119,0.07509482,217.39,217.14,0.18853322]
[1693507415306,0.07509482,217.39,217.13,0.18853322]
[1693507415611,0.07509482,217.39,217.14,0.18853322]
[1693507417307,0.07509482,217.39,217.13,0.26361727]
[1693507417512,0.07509482,217.39,217.14,0.18853322]
[1693507423211,0.07509482,217.39,217.15,0.18853322]
[1693507423417,0.07509482,217.38,217.16,0.18853322]
[1693507423619,0.07509482,217.38,217.11,0.07508405]
[1693507423917,0.07509482,217.38,217.12,0.1883067]
[1693507425619,0.07509482,217.39,217.12,0.1883067]
[1693507425817,0.07509482,217.39,217.12,0.26339075]
[1693507426014,0.07509482,217.39,217.13,0.1883067]
[1693507427318,0.07509482,217.38,217.13,0.1883067]
[1693507428316,0.07509482,217.38,217.14,0.1883067]
[1693507428516,0.07509482,217.37,217.12,0.1883067]
[1693507428821,0.07509482,217.37,217.13,0.1883067]
[1693507429021,0.07509482,217.37,217.12,0.1883067]
[1693507432220,0.07509482,217.38,217.12,0.1883067]
[1693507432616,0.07509482,217.37,217.12,0.1883067]
[1693507432822,0.07509482,217.38,217.12,0.1883067]
[1693507440035,0.07509482,217.37,217.12,0.1883067]
[1693507440233,0.07509482,217.37,217.11,0.07508405]
[1693507440234,0.07509482,217.33,217.06,0.07508405]
[1693507440433,0.07509482,217.33,217.07,0.18850298]
[1693507440631,0.07509482,217.32,217.07,0.18850298]
[1693507441034,0.07509482,217.32,217.06,0.18850298]
[1693507441229,0.07509482,217.32,217.07,0.18850298]
[1693507441430,0.07509482,217.32,217.08,0.18850298]
[1693507441633,0.07509482,217.32,217.06,0.18850298]
[1693507441829,0.07509482,217.33,217.07,0.18850298]
[1693507442136,0.07509482,217.33,217.08,0.18850298]
[1693507442436,0.07509482,217.33,217.09,0.18850298]
[1693507442635,0.07509482,217.33,217.04,0.26358703]
[1693507442835,0.07509482,217.33,216.97,0.15016811]
[1693507442836,0.07509482,217.33,217.05,0.18850298]
[1693507443134,0.07509482,217.33,217.06,0.18850298]
[1693507443329,0.07509482,217.33,217.07,0.18850298]
[1693507443535,0.07509482,217.33,217.04,0.18850298]
[1693507443735,0.07509482,217.32,217.05,0.18850298]
[1693507443937,0.07509482,217.32,217.04,0.18850298]
[1693507444131,0.07509482,217.32,217.05,0.18850298]
[1693507444330,0.07509482,217.32,217.03,0.26358703]
[1693507444530,0.07509482,217.32,217.04,0.18850298]
[1693507444833,0.07509482,217.33,217.05,0.18850298]
[1693507445035,0.07509482,217.32,217.06,0.18850298]
[1693507445235,0.07509482,217.32,217.02,0.18850298]
[1693507445436,0.07509482,217.33,217.03,0.18850298]
[1693507445631,0.07509482,217.33,217.01,0.18850298]
[1693507445938,0.07509482,217.33,217.02,0.18850298]
[1693507446138,0.07509482,217.33,217.01,0.18850298]
[1693507446332,0.07509482,217.33,217.03,0.18850298]
[1693507446637,0.07509482,217.34,217.04,0.18850298]
[1693507446834,0.07509482,217.34,217.0,0.18850298]
[1693507447033,0.07509482,217.33,217.01,0.18850298]
[1693507447235,0.07509482,217.33,217.0,0.18850298]
[1693507447436,0.07509482,217.34,217.01,0.18850298]
[1693507447633,0.07509482,217.34,217.02,0.18850298]
[1693507447837,0.07509482,217.34,217.03,0.18850298]
[1693507448033,0.07509482,217.34,216.98,0.18850298]
[1693507448238,0.07509482,217.34,216.99,0.18850298]
[1693507448439,0.07509482,217.34,216.98,0.18850298]
[1693507448635,0.07509482,217.34,216.99,0.18850298]
[1693507448840,0.07509482,217.35,216.98,0.18850298]
[1693507449043,0.07509482,217.34,216.99,0.18850298]
[1693507449239,0.07509482,217.34,216.98,0.18850298]
[1693507452642,0.07509482,217.38,217.0,0.18850298]
[1693507455942,0.07509482,217.38,217.0,0.26358703]
[1693507456145,0.07509482,217.38,217.01,0.18850298]
[1693507460450,0.07509482,217.37,217.01,0.18850298]
[1693507460647,0.07509482,217.38,217.01,0.18850298]
[1693507460846,0.07509482,217.37,217.01,0.18850298]
[1693507461045,0.07509482,217.38,217.01,0.18850298]
[1693507461347,0.07509482,217.37,217.01,0.18850298]
[1693507461649,0.07509482,217.38,217.01,0.26358703]
[1693507461853,0.07509482,217.37,217.02,0.18850298]
[1693507462253,0.07509482,217.37,217.01,0.18850298]
[1693507462454,0.07509482,217.37,217.02,0.18850298]
[1693507462650,0.07509482,217.37,217.01,0.18850298]
[1693507462852,0.07509482,217.36,217.02,0.18850298]
[1693507463053,0.07509482,217.36,217.03,0.18850298]
[1693507463256,0.07509482,217.36,217.01,0.18850298]
[1693507463455,0.07509482,217.36,217.02,0.18850298]
[1693507463653,0.07509482,217.36,217.0,0.07508405]
[1693507463654,0.07509482,217.36,217.01,0.18850298]
[1693507463953,0.07509482,217.36,217.02,0.18850298]
[1693507464154,0.07509482,217.36,217.01,0.18850298]
[1693507464355,0.07509482,217.36,217.02,0.18850298]
[1693507464553,0.07509482,217.36,217.01,0.26358703]
[1693507464754,0.07509482,217.36,217.02,0.18850298]
[1693507468356,0.07509482,217.35,217.02,0.26358703]
[1693507468558,0.07509482,217.35,217.03,0.18850298]
[1693507470460,0.07509482,217.35,217.03,0.26358703]
[1693507470660,0.07509482,217.34,217.04,0.18850298]
[1693507471062,0.07509482,217.34,217.03,0.18850298]
[1693507471364,0.07509482,217.33,217.04,0.18850298]
[1693507472263,0.07509482,217.34,217.04,0.18850298]
[1693507472465,0.07509482,217.33,217.04,0.18850298]
[1693507472656,0.07509482,217.33,217.04,0.26358703]
[1693507472861,0.07509482,217.33,217.05,0.18850298]
[1693507473262,0.07509482,217.32,217.05,0.18850298]
[1693507473761,0.07509482,217.32,217.05,0.26358703]
[1693507473963,0.07509482,217.32,217.06,0.18850298]
[1693507474558,0.07509482,217.31,217.07,0.18850298]
[1693507476156,0.07509482,217.31,217.06,0.18850298]
[1693507477264,0.07509482,217.31,217.06,0.26358703]
[1693507477456,0.07509482,217.31,217.07,0.18850298]
[1693507480358,0.07509482,217.3,217.07,0.18850298]
[1693507483364,0.07509482,217.29,217.07,0.26358703]
[1693507483666,0.07509482,217.29,217.08,0.18850298]
[1693507490273,0.07509482,217.28,217.08,0.18850298]
[1693507490571,0.07509482,217.28,217.06,0.07508405]
[1693507490767,0.07509482,217.28,217.07,0.188565]
[1693507492571,0.07509482,217.28,217.06,0.188565]
[1693507494272,2.49141799,217.41,217.06,0.188565]
[1693507494273,0.07509482,217.27,217.06,0.188565]
[1693507494474,0.07509482,217.28,217.05,0.188565]
[1693507494774,0.07509482,217.28,217.06,0.188565]
[1693507494974,0.07509482,217.28,217.05,0.188565]
[1693507495174,0.07509482,217.28,217.06,0.188565]
[1693507495375,0.07509482,217.28,217.04,0.07508405]
[1693507495376,0.07509482,217.28,217.07,0.188565]
[1693507495671,0.07509482,217.28,217.04,0.07508405]
[1693507495876,0.07509482,217.28,217.05,0.18859859]
[1693507496775,0.07509482,217.28,217.06,0.18859859]
[1693507496974,0.07509482,217.28,217.04,0.18859859]
[1693507497174,0.07509482,217.28,217.05,0.18859859]
[1693507497372,0.07509482,217.28,217.04,0.18859859]
[1693507497572,0.07509482,217.28,217.05,0.18859859]
[1693507497769,0.07509482,217.28,217.04,0.18859859]
[1693507497975,0.07509482,217.28,217.05,0.18859859]
[1693507498174,0.07509482,217.28,217.06,0.18859859]
[1693507498475,0.07509482,217.28,217.03,0.07508405]
[1693507498674,0.07509482,217.28,217.04,0.18860191]
[1693507500075,0.07509482,217.29,217.04,0.18860191]
[1693507502778,0.07509482,217.3,217.04,0.26368596]
[1693507502979,0.07509482,217.3,217.05,0.18860191]
[1693507504780,0.07509482,217.3,217.05,0.26368596]
[1693507504974,0.07509482,217.3,217.06,0.18860191]
[1693507506580,0.07509482,217.29,217.06,0.18860191]
[1693507506775,0.07509482,217.29,217.07,0.18860191]
[1693507507083,0.07509482,217.29,217.03,0.07508405]
[1693507507275,0.07509482,217.29,217.04,0.18860388]
[1693507507877,0.07509482,217.28,217.04,0.18860388]
[1693507508074,0.07509482,217.29,217.04,0.18860388]
[1693507508377,0.07509482,217.28,217.04,0.18860388]
[1693507508682,0.07509482,217.27,217.02,0.07508405]
[1693507508875,0.07509482,217.24,216.96,0.07508405]
[1693507509180,0.07509482,217.24,216.97,0.18884136]
[1693507509875,0.07509482,217.25,216.97,0.18884136]
[1693507510073,0.07509482,217.25,216.96,0.18884136]
[1693507510275,0.07509482,217.25,216.97,0.18884136]
[1693507510473,0.07509482,217.25,216.96,0.18884136]
[1693507510677,0.07509482,217.25,216.97,0.18884136]
[1693507510879,0.07509482,217.26,216.96,0.18884136]
[1693507511080,0.07509482,217.26,216.97,0.18884136]
[1693507511280,0.07509482,217.26,216.98,0.18884136]
[1693507511481,0.07509482,217.26,216.99,0.18884136]
[1693507511676,0.07509482,217.26,216.94,0.07508405]
[1693507511677,0.07509482,217.26,217.0,0.18884136]
[1693507511880,0.07509482,217.26,217.01,0.18884136]
[1693507512079,0.07509482,217.26,216.94,0.07508405]
[1693507512280,0.07509482,217.26,216.95,0.18882609]
[1693507512583,0.07509482,217.26,216.96,0.18882609]
[1693507512878,0.07509482,217.26,216.97,0.18882609]
[1693507513183,0.07509482,217.26,216.98,0.18882609]
[1693507513483,0.07509482,217.26,216.99,0.18882609]
[1693507513782,0.07509482,217.26,217.0,0.18882609]
[1693507513979,0.07509482,217.26,216.94,0.18882609]
[1693507514180,0.07509482,217.26,216.95,0.18883703]
[1693507514377,0.07509482,217.26,216.93,0.18883703]
[1693507514578,0.07509482,217.26,216.94,0.18883703]
[1693507514787,0.07509482,217.26,216.95,0.18883703]
[1693507515082,0.99656719,217.34,216.77,0.50056038]
[1693507515083,0.07509482,217.27,216.96,0.18883703]
[1693507515282,0.07509482,217.27,216.97,0.18883703]
[1693507515484,0.07509482,217.27,216.98,0.18883703]
[1693507515675,0.07509482,217.27,216.99,0.18883703]
[1693507515875,0.07509482,217.27,217.0,0.18883703]
[1693507516082,0.07509482,217.28,217.01,0.18883703]
[1693507516276,0.07509482,217.27,216.92,0.07508405]
[1693507516476,0.07509482,217.27,216.77,0.50056038]
[1693507516477,0.07509482,217.27,216.93,0.18883307]
[1693507516676,0.07509482,217.26,216.94,0.18883307]
[1693507516882,0.07509482,217.26,216.92,0.18883307]
[1693507517079,0.07509482,217.26,216.93,0.18883307]
[1693507517283,0.07509482,217.27,216.94,0.18883307]
[1693507517481,0.07509482,217.27,216.95,0.18883307]
[1693507517684,0.07509482,217.27,216.96,0.18883307]
[1693507517884,0.07509482,217.27,216.9,0.07508405]
[1693507517885,0.07509482,217.27,216.97,0.18883307]
[1693507518081,0.07509482,217.27,216.98,0.18883307]
[1693507518289,0.07509482,217.27,216.91,0.18883307]
[1693507518489,0.07509482,217.27,216.92,0.18883307]
[1693507518685,0.07509482,217.26,216.93,0.18883307]
[1693507518881,0.07509482,217.26,216.94,0.18883307]
[1693507519080,0.07509482,217.26,216.9,0.18883307]
[1693507519283,0.07509482,217.26,216.91,0.18883307]
[1693507519484,0.07509482,217.26,216.92,0.18883307]
[1693507519682,0.07509482,217.27,216.93,0.18883307]
[1693507519885,0.07509482,217.27,216.94,0.18883307]
[1693507520088,0.07509482,217.27,216.89,0.18883307]
[1693507520284,0.07509482,217.27,216.9,0.18883307]
[1693507520481,0.07509482,217.27,216.91,0.18883307]
[1693507520681,0.07509482,217.27,216.92,0.18883307]
[1693507520986,0.07509482,217.27,216.93,0.18883307]
[1693507521187,0.07509482,217.27,216.94,0.18883307]
[1693507521382,0.07509482,217.27,216.95,0.18883307]
[1693507521584,0.07509482,217.27,216.96,0.18883307]
[1693507521786,0.07509482,217.27,216.97,0.18883307]
[1693507521985,0.07509482,217.27,216.98,0.18883307]
[1693507522285,0.07509482,217.27,216.88,0.07508405]
[1693507522484,0.07509482,217.27,216.89,0.18886047]
[1693507523089,0.07509482,217.27,216.88,0.18886047]
[1693507523389,0.07509482,217.27,216.89,0.18886047]
[1693507523686,0.07509482,217.26,216.9,0.18886047]
[1693507523887,0.07509482,217.27,216.91,0.18886047]
[1693507524087,0.07509482,217.27,216.92,0.18886047]
[1693507524288,0.07509482,217.26,216.88,0.18886047]
[1693507524489,0.07509482,217.26,216.89,0.18886047]
[1693507524688,0.07509482,217.26,216.88,0.18886047]
[1693507524889,0.07509482,217.26,216.89,0.18886047]
[1693507525089,0.07509482,217.26,216.88,0.18886047]
[1693507525289,0.07509482,217.26,216.89,0.18886047]
[1693507525492,0.07509482,217.26,216.87,0.18886047]
[1693507525790,0.07509482,217.26,216.88,0.18886047]
[1693507525990,0.07509482,217.26,216.89,0.18886047]
[1693507526189,0.07509482,217.26,216.9,0.18886047]
[1693507526491,0.07509482,217.26,216.91,0.18886047]
[1693507526789,0.07509482,217.27,216.92,0.18886047]
[1693507526985,0.07509482,217.26,216.87,0.26394452]
[1693507527190,0.07509482,217.28,216.88,0.18886047]
[1693507527384,0.07509482,217.28,216.88,0.26394452]
[1693507527892,0.07509482,217.28,216.89,0.18886047]
[1693507528091,0.07509482,217.27,216.89,0.18886047]
[1693507528391,0.07509482,217.27,216.9,0.18886047]
[1693507528692,0.07509482,217.27,216.91,0.18886047]
[1693507528889,0.07509482,217.27,216.92,0.18886047]
[1693507529086,0.07509482,217.27,216.89,0.18886047]
[1693507529286,0.07509482,217.27,216.9,0.18886047]
[1693507529485,0.07509482,217.27,216.88,0.07508405]
[1693507529486,0.07509482,217.27,216.91,0.18886047]
[1693507529687,0.07509482,217.27,216.89,0.18886047]
[1693507529884,0.07509482,217.27,216.9,0.18886047]
[1693507530091,0.07509482,217.27,216.89,0.18886047]
[1693507530293,0.07509482,217.27,216.9,0.18886047]
[1693507530493,0.07509482,217.27,216.89,0.18886047]
[1693507530694,0.07509482,217.27,216.9,0.18886047]
[1693507530886,0.07509482,217.27,216.89,0.18886047]
[1693507531086,0.07509482,217.27,216.9,0.18886047]
[1693507531291,0.07509482,217.27,216.91,0.18886047]
[1693507531487,0.07509482,217.27,216.92,0.18886047]
[1693507531691,0.07509482,217.27,216.93,0.18886047]
[1693507531891,0.07509482,217.27,216.94,0.18886047]
[1693507532091,0.07509482,217.27,216.95,0.18886047]
[1693507532292,0.07509482,217.27,216.89,0.18886047]
[1693507532592,0.07509482,217.27,216.9,0.18886047]
[1693507532792,0.07509482,217.27,216.89,0.18886047]
[1693507533491,0.07509482,217.27,216.89,0.26394452]
[1693507533691,0.07509482,217.27,216.9,0.18886047]
[1693507534090,0.07509482,217.26,216.9,0.18886047]
[1693507536992,2.49141799,217.39,216.9,0.18886047]
[1693507536993,0.07509482,217.25,216.9,0.18886047]
[1693507538790,0.07509482,217.24,216.9,0.18886047]
[1693507539295,0.07509482,217.24,216.9,0.26394452]
[1693507539493,0.07509482,217.24,216.91,0.18886047]
[1693507539690,0.07509482,217.24,216.9,0.18886047]
[1693507539894,2.49141799,217.37,216.91,0.18886047]
[1693507539895,0.07509482,217.23,216.91,0.18886047]
[1693507540594,0.07509482,217.23,216.91,0.26394452]
[1693507540795,2.49141799,217.36,216.51,2.5028019]
[1693507540796,0.07509482,217.22,216.92,0.26394452]
[1693507540997,0.07509482,217.22,216.93,0.18886047]
[1693507541896,0.07509482,217.21,216.93,0.26394452]
[1693507542096,0.07509482,217.21,216.94,0.18886047]
[1693507543097,0.07509482,217.19,216.95,0.07508405]
[1693507543297,0.07509482,217.19,216.96,0.18886047]
[1693507544796,0.07509482,217.19,216.96,0.26394452]
[1693507544996,0.07509482,217.19,216.97,0.18886047]
[1693507545691,0.07509482,217.19,216.97,0.26394452]
[1693507545893,0.07509482,217.19,216.98,0.18886047]
[1693507546498,0.07509482,217.2,216.98,0.18886047]
[1693507547294,0.07509482,217.19,216.98,0.18886047]
[1693507549397,0.07509482,217.2,216.98,0.18886047]
[1693507550395,0.07509482,217.2,216.98,0.26394452]
[1693507550597,0.07509482,217.2,216.99,0.18886047]
[1693507552605,0.07509482,217.2,216.98,0.07508405]
[1693507552806,0.07509482,217.2,216.99,0.18885674]
[1693507553008,0.07509482,217.2,216.98,0.18885674]
[1693507553203,0.07509482,217.2,216.99,0.18885674]
[1693507555002,0.07509482,217.2,216.98,0.18885674]
[1693507555202,0.07509482,217.2,216.99,0.18885332]
[1693507555402,0.07509482,217.2,216.98,0.18885332]
[1693507561309,0.07509482,217.19,216.98,0.18885332]
[1693507563303,0.07509482,217.2,216.98,0.18885332]
[1693507563710,0.07509482,217.19,216.98,0.18885332]
[1693507564705,0.07509482,217.19,216.96,0.07508405]
[1693507564909,0.07509482,217.19,216.97,0.18888238]
[1693507568012,0.07509482,217.19,216.97,0.26396643]
[1693507568213,0.07509482,217.19,216.98,0.18888238]
[1693507569311,0.07509482,217.19,216.96,0.07508405]
[1693507569510,0.07509482,217.19,216.97,0.18888083]
[1693507570013,0.07509482,217.18,216.97,0.18888083]
[1693507570308,0.07509482,217.18,216.95,0.07508405]
[1693507570514,0.07509482,217.18,216.96,0.18889962]
[1693507571512,0.07509482,217.19,216.96,0.18889962]
[1693507574315,0.07509482,217.18,216.96,0.18889962]
[1693507574519,0.07509482,217.18,216.97,0.18889962]
[1693507574725,0.07509482,217.18,216.94,0.07508405]
[1693507575016,0.07509482,217.18,216.95,0.18892696]
[1693507576811,0.07509482,217.19,216.95,0.18892696]
[1693507577012,0.07509482,217.18,216.95,0.18892696]
[1693507577418,0.07509482,217.19,216.95,0.18892696]
[1693507577615,0.07509482,217.18,216.94,0.18892696]
[1693507577818,0.07509482,217.18,216.93,0.07508405]
[1693507577819,0.07509482,217.18,216.95,0.18892696]
[1693507578012,0.07509482,217.18,216.94,0.18892696]
[1693507578216,0.07509482,217.18,216.95,0.18892696]
[1693507578417,0.07509482,217.19,216.96,0.18892696]
[1693507578617,0.07509482,217.19,216.97,0.18892696]
[1693507578818,0.07509482,217.19,216.93,0.07508405]
[1693507579016,0.07509482,217.19,216.94,0.18893638]
[1693507588820,0.07509482,217.18,216.94,0.18893638]
[1693507589527,0.07509482,217.19,216.94,0.18893638]
[1693507589729,0.07509482,217.18,216.94,0.18893638]
[1693507592733,0.07509482,217.18,216.94,0.26402043]
[1693507592926,0.07509482,217.19,216.95,0.18893638]
[1693507594628,0.07509482,217.18,216.95,0.18893638]
[1693507598032,0.07509482,217.17,216.95,0.18893638]
[1693507598737,0.49828359,217.22,216.95,0.18893638]
[1693507598738,0.07509482,217.18,216.95,0.18893638]
[1693507599434,0.07509482,217.17,216.95,0.18893638]
[1693507599637,0.07509482,217.17,216.95,0.26402043]
[1693507599837,0.07509482,217.17,216.96,0.18893638]
[1693507600240,0.07509482,217.18,216.96,0.18893638]
[1693507600440,0.07509482,217.17,216.96,0.18893638]
[1693507605338,0.07509482,217.16,216.96,0.18893638]
[1693507617348,0.07509482,217.17,216.96,0.18893638]
[1693507620248,0.07509482,217.16,216.96,0.18893638]
[1693507622451,3.21738658,217.53,216.96,0.18893638]
[1693507622651,0.07509908,217.16,216.95,0.07553074]
[1693507622853,0.07509908,217.16,216.96,0.18895449]
[1693507623152,0.07509908,217.15,216.94,0.07553074]
[1693507623347,0.07509908,217.15,216.95,0.18897882]
[1693507623955,0.07509908,217.15,216.94,0.18897882]
[1693507624153,0.07509908,217.15,216.93,0.07553074]
[1693507624154,0.07509908,217.15,216.95,0.18898226]
[1693507624448,0.07509908,217.16,216.96,0.18898226]
[1693507624653,0.07509908,217.16,216.94,0.07553074]
[1693507624849,0.07509908,217.16,216.95,0.1889625]
[1693507626255,0.07509908,217.16,216.95,0.26449324]
[1693507626450,0.07509908,217.16,216.96,0.1889625]
[1693507632259,0.07509908,217.16,216.94,0.07553074]
[1693507632460,0.07509908,217.16,216.95,0.18894855]
[1693507636567,0.07509908,217.15,216.94,0.07553074]
[1693507636761,0.22529724,217.12,216.86,0.07553074]
[1693507636962,0.07509908,217.11,216.87,0.18921999]
[1693507637163,0.07509908,217.11,216.86,0.18921999]
[1693507638466,0.07509908,217.09,216.86,0.18921999]
[1693507638666,0.07509908,217.11,216.84,0.18921999]
[1693507638867,0.07509908,217.11,216.85,0.18921999]
[1693507639067,0.07509908,217.11,216.82,0.18921999]
[1693507639366,0.07509908,217.11,216.83,0.18921999]
[1693507639566,0.07509908,217.12,216.82,0.18921999]
[1693507639764,0.07509908,217.12,216.83,0.18921999]
[1693507639968,0.07509908,217.13,216.8,0.18921999]
[1693507640168,0.07509908,217.13,216.81,0.18921999]
[1693507641570,0.07509908,217.14,216.81,0.18921999]
[1693507641771,0.07509908,217.15,216.81,0.26475073]
[1693507642071,0.07509908,217.21,216.86,0.07553074]
[1693507642266,0.07509908,217.21,216.87,0.18921999]
[1693507643269,0.07509908,217.22,216.87,0.26475073]
[1693507643468,0.07509908,217.21,216.88,0.18921999]
[1693507643670,0.07509908,217.21,216.87,0.18921999]
[1693507643971,0.07509908,217.21,216.88,0.18921999]
[1693507644172,0.07509908,217.21,216.87,0.18921999]
[1693507644367,0.07509908,217.21,216.88,0.18921999]
[1693507644569,0.07509908,217.21,216.87,0.18921999]
[1693507644766,0.07509908,217.21,216.88,0.18921999]